fUSD/lending_fUSD_20250125
["ID","MTS","AMOUNT","RATE_DAILY","PERIOD"]
[350340845,1737804641152,-500.0,0.0001726,2]
[350340847,1737804641161,-500.0,0.0001726,2]
[350340849,1737804641170,-1237.81,0.0001726,2]
[350340851,1737804641179,-500.0,0.0001726,2]
[350340853,1737804641187,-500.0,0.0001726,2]
[350340855,1737804641196,-580.12,0.0001726,2]
[350340857,1737804641206,-998.29,0.0001726,2]
[350340859,1737804641215,-500.0,0.0001726,2]
[350340861,1737804641224,-1303.77,0.0001726,2]
[350340863,1737804641233,-500.0,0.0001726,2]
[350340865,1737804641242,-997.137099,0.0001726,2]
[350340867,1737804641252,-300.5429529,0.0001726,2]
[350340869,1737804641264,-199.4570471,0.0001726,2]
[350340871,1737804641273,-500.0,0.0001726,2]
[350340873,1737804641282,-821.75,0.0001726,2]
[350340875,1737804641291,-500.0,0.0001726,2]
[350340877,1737804641301,-500.0,0.0001726,2]
[350340879,1737804641310,-500.0,0.0001726,2]
[350340881,1737804641319,-500.0,0.0001726,2]
[350340883,1737804641328,-5563.0829534,0.00017343,2]
[350340885,1737804641339,-13724.235,0.00017343,2]
[350340887,1737804641350,-1384.75,0.00017343,2]
[350340890,1737804641361,-1886.70249696,0.00017343,2]
[350340893,1737804641384,-799.22862939,0.00017343,2]
[350340895,1737804641393,-500.0,0.00017397,2]
[350340897,1737804641402,-244.62,0.00017397,2]
[350340899,1737804641411,-738.64,0.00017397,2]
[350340901,1737804641420,-500.0,0.00017397,2]
[350340903,1737804641429,-776.46,0.00017397,2]
[350340905,1737804641439,-500.0,0.00017397,2]
[350340907,1737804641448,-500.0,0.00017397,2]
[350340909,1737804641457,-500.0,0.00017397,2]
[350340911,1737804641466,-992.11,0.00017397,2]
[350340913,1737804641475,-500.0,0.00017397,2]
[350340915,1737804641484,-500.0,0.00017397,2]
[350340917,1737804641493,-500.0,0.00017397,2]
[350340919,1737804641503,-1237.81,0.00017397,2]
[350340921,1737804641512,-500.0,0.00017397,2]
[350340923,1737804641521,-500.0,0.00017397,2]
[350340925,1737804641531,-580.12,0.00017397,2]
[350340927,1737804641540,-998.29,0.00017397,2]
[350340929,1737804641548,-500.0,0.00017397,2]
[350340931,1737804641557,-1303.77,0.00017397,2]
[350340933,1737804641566,-500.0,0.00017397,2]
[350340935,1737804641575,-997.137099,0.00017397,2]
[350340937,1737804641585,-500.0,0.00017397,2]
[350340939,1737804641594,-500.0,0.00017397,2]
[350340940,1737804641603,-159.837631,0.00017397,2]
[350340942,1737804641613,-821.75,0.00017397,2]
[350340944,1737804641622,-500.0,0.00017397,2]
[350340946,1737804641631,-500.0,0.00017397,2]
[350340948,1737804641640,-500.0,0.00017397,2]
[350340950,1737804641650,-765.56199164,0.00017417,2]
[350340952,1737804641658,-500.0,0.00017534,2]
[350340954,1737804641667,-738.64,0.00017534,2]
[350340956,1737804641676,-500.0,0.00017534,2]
[350340958,1737804641685,-776.46,0.00017534,2]
[350340960,1737804641695,-500.0,0.00017534,2]
[350340962,1737804641704,-500.0,0.00017534,2]
[350340964,1737804641713,-500.0,0.00017534,2]
[350340966,1737804641722,-992.11,0.00017534,2]
[350340968,1737804641731,-500.0,0.00017534,2]
[350340970,1737804641740,-500.0,0.00017534,2]
[350340972,1737804641749,-500.0,0.00017534,2]
[350340974,1737804641759,-1237.81,0.00017534,2]
[350340976,1737804641768,-500.0,0.00017534,2]
[350340978,1737804641777,-484.07576994,0.00017534,2]
[350340980,1737804641787,-580.12,0.00017534,2]
[350340982,1737804641796,-998.29,0.00017534,2]
[350340984,1737804641805,-500.0,0.00017534,2]
[350340986,1737804641813,-1303.77,0.00017534,2]
[350340988,1737804641822,-500.0,0.00017534,2]
[350340990,1737804641831,-997.137099,0.00017534,2]
[350340992,1737804641841,-500.0,0.00017534,2]
[350340994,1737804641850,-500.0,0.00017534,2]
[350340996,1737804641859,-821.75,0.00017534,2]
[350340997,1737804641868,-500.0,0.00017534,2]
[350341000,1737804641878,-500.0,0.00017534,2]
[350341002,1737804641887,-500.0,0.00017534,2]
[350341004,1737804641897,-500.0,0.00017671,2]
[350341006,1737804641906,-738.64,0.00017671,2]
[350341008,1737804641915,-500.0,0.00017671,2]
[350341010,1737804641925,-776.46,0.00017671,2]
[350341012,1737804641935,-500.0,0.00017671,2]
[350341014,1737804641944,-500.0,0.00017671,2]
[350341016,1737804641953,-640.53120989,0.00017671,2]
[350341018,1737804641962,-992.11,0.00017671,2]
[350341019,1737804641973,-500.0,0.00017671,2]
[350341021,1737804641984,-500.0,0.00017671,2]
[350341023,1737804641993,-182.02376697,0.00017671,2]
[350341026,1737804642003,-1237.81,0.00017671,2]
[350341027,1737804642013,-500.0,0.00017671,2]
[350341029,1737804642022,-580.12,0.00017671,2]
[350341031,1737804642031,-998.29,0.00017671,2]
[350341033,1737804642040,-500.0,0.00017671,2]
[350341035,1737804642050,-1303.77,0.00017671,2]
[350341037,1737804642059,-500.0,0.00017671,2]
[350341039,1737804642068,-997.137099,0.00017671,2]
[350341041,1737804642078,-500.0,0.00017671,2]
[350341043,1737804642087,-500.0,0.00017671,2]
[350341045,1737804642096,-821.75,0.00017671,2]
[350341047,1737804642105,-500.0,0.00017671,2]
[350341049,1737804642115,-500.0,0.00017671,2]
[350341051,1737804642124,-500.0,0.00017671,2]
[350341053,1737804642133,-765.56199164,0.00017762,2]
[350341054,1737804642142,-500.0,0.00017808,2]
[350341055,1737804642151,-738.64,0.00017808,2]
[350341056,1737804642160,-500.0,0.00017808,2]
[350341057,1737804642170,-776.46,0.00017808,2]
[350341058,1737804642179,-500.0,0.00017808,2]
[350341059,1737804642188,-500.0,0.00017808,2]
[350341060,1737804642198,-992.11,0.00017808,2]
[350341061,1737804642207,-500.0,0.00017808,2]
[350341062,1737804642216,-500.0,0.00017808,2]
[350341063,1737804642225,-1237.81,0.00017808,2]
[350341064,1737804642234,-500.0,0.00017808,2]
[350341065,1737804642244,-580.12,0.00017808,2]
[350341067,1737804642252,-998.29,0.00017808,2]
[350341069,1737804642261,-500.0,0.00017808,2]
[350341071,1737804642270,-1303.77,0.00017808,2]
[350341073,1737804642279,-500.0,0.00017808,2]
[350341075,1737804642289,-500.0,0.00017808,2]
[350341077,1737804642298,-500.0,0.00017808,2]
[350341079,1737804642307,-821.75,0.00017808,2]
[350341081,1737804642316,-500.0,0.00017808,2]
[350341083,1737804642324,-500.0,0.00017808,2]
[350341085,1737804642334,-253.19935468,0.00017808,2]
[350341087,1737804642343,-500.0,0.00017945,2]
[350341089,1737804642352,-738.64,0.00017945,2]
[350341090,1737804642361,-500.0,0.00017945,2]
[350341093,1737804642371,-776.46,0.00017945,2]
[350341094,1737804642381,-500.0,0.00017945,2]
[350341096,1737804642390,-427.08,0.00017945,2]
[350341098,1737804642399,-992.11,0.00017945,2]
[350341100,1737804642408,-500.0,0.00017945,2]
[350341102,1737804642418,-500.0,0.00017945,2]
[350341105,1737804642427,-1237.81,0.00017945,2]
[350341106,1737804642436,-500.0,0.00017945,2]
[350341108,1737804642446,-580.12,0.00017945,2]
[350341110,1737804642455,-998.29,0.00017945,2]
[350341113,1737804642465,-500.0,0.00017945,2]
[350341115,1737804642474,-1303.77,0.00017945,2]
[350341117,1737804642484,-500.0,0.00017945,2]
[350341119,1737804642494,-500.0,0.00017945,2]
[350341121,1737804642503,-500.0,0.00017945,2]
[350341123,1737804642512,-821.75,0.00017945,2]
[350341125,1737804642521,-500.0,0.00017945,2]
[350341127,1737804642531,-500.0,0.00017945,2]
[350341129,1737804642540,-182.97,0.00017977,2]
[350341131,1737804642549,-10337.5956425,0.00018,3]
[350341133,1737804642559,-388.001393,0.00018,5]
[350341135,1737804642567,-1135.36479407,0.00018,2]
[350341137,1737804642577,-1033.45045277,0.00018,2]
[350341139,1737804642586,-5615.36403996,0.00018,2]
[350341140,1737804642595,-500.0,0.00018082,2]
[350341142,1737804642604,-738.64,0.00018082,2]
[350341144,1737804642613,-500.0,0.00018082,2]
[350341146,1737804642623,-776.46,0.00018082,2]
[350341148,1737804642632,-500.0,0.00018082,2]
[350341150,1737804642642,-992.11,0.00018082,2]
[350341152,1737804642651,-500.0,0.00018082,2]
[350341154,1737804642660,-500.0,0.00018082,2]
[350341156,1737804642669,-1237.81,0.00018082,2]
[350341157,1737804642678,-500.0,0.00018082,2]
[350341158,1737804642688,-580.12,0.00018082,2]
[350341159,1737804642697,-998.29,0.00018082,2]
[350341160,1737804642706,-500.0,0.00018082,2]
[350341161,1737804642716,-1303.77,0.00018082,2]
[350341162,1737804642725,-500.0,0.00018082,2]
[350341163,1737804642734,-500.0,0.00018082,2]
[350341164,1737804642743,-500.0,0.00018082,2]
[350341165,1737804642753,-821.75,0.00018082,2]
[350341166,1737804642762,-500.0,0.00018082,2]
[350341167,1737804642771,-500.0,0.00018082,2]
[350341168,1737804642780,-391.80149259,0.000181,2]
[350341169,1737804642790,-765.56199164,0.00018107,2]
[350341170,1737804642799,-608.01067353,0.00018146,2]
[350341171,1737804642809,-500.0,0.00018164,2]
[350341173,1737804642818,-500.0,0.00018164,2]
[350341175,1737804642827,-253.21,0.00018164,2]
[350341177,1737804642836,-82902.51968737,0.00018189,2]
[350341179,1737804642847,-23357.99907975,0.00018195,2]
[350341181,1737804642856,-500.0,0.00018219,2]
[350341182,1737804642865,-738.64,0.00018219,2]
[350341183,1737804642874,-500.0,0.00018219,2]
[350341184,1737804642884,-776.46,0.00018219,2]
[350341185,1737804642893,-500.0,0.00018219,2]
[350341186,1737804642903,-992.11,0.00018219,2]
[350341188,1737804642913,-500.0,0.00018219,2]
[350341190,1737804642923,-500.0,0.00018219,2]
[350341192,1737804642932,-1237.81,0.00018219,2]
[350341194,1737804642941,-438.7,0.00018219,2]
[350341196,1737804642951,-580.12,0.00018219,2]
[350341198,1737804642960,-998.29,0.00018219,2]
[350341199,1737804642970,-500.0,0.00018219,2]
[350341201,1737804642981,-1303.77,0.00018219,2]
[350341202,1737804642990,-500.0,0.00018219,2]
[350341205,1737804643000,-500.0,0.00018219,2]
[350341213,1737804643135,-500.0,0.00018219,2]
[350341214,1737804643144,-821.75,0.00018219,2]
[350341215,1737804643154,-368.53,0.00018219,2]
[350341216,1737804643164,-500.0,0.00018219,2]
[350341217,1737804643173,-250.0,0.00018343,2]
[350341218,1737804643182,-1000.0,0.00018348,2]
[350341219,1737804643192,-500.0,0.00018356,2]
[350341220,1737804643202,-738.64,0.00018356,2]
[350341221,1737804643212,-500.0,0.00018356,2]
[350341222,1737804643222,-776.46,0.00018356,2]
[350341223,1737804643232,-193.1680022,0.00018356,2]
[350341224,1737804643245,-992.11,0.00018356,2]
[350341225,1737804643254,-500.0,0.00018356,2]
[350341226,1737804643263,-500.0,0.00018356,2]
[350341227,1737804643273,-1237.81,0.00018356,2]
[350341228,1737804643282,-580.12,0.00018356,2]
[350341229,1737804643293,-998.29,0.00018356,2]
[350341230,1737804643302,-500.0,0.00018356,2]
[350341231,1737804643311,-1303.77,0.00018356,2]
[350341232,1737804643321,-500.0,0.00018356,2]
[350341233,1737804643330,-500.0,0.00018356,2]
[350341234,1737804643339,-500.0,0.00018356,2]
[350341235,1737804643350,-821.75,0.00018356,2]
[350341236,1737804643362,-500.0,0.00018356,2]
[350341237,1737804643372,-250.0,0.00018359,2]
[350341238,1737804643381,-155.59,0.00018365,2]
[350341239,1737804643390,-250.0,0.0001838,2]
[350341240,1737804643399,-23900.0,0.00018412,2]
[350341241,1737804643410,-765.56199164,0.00018452,2]
[350341242,1737804643420,-400.77,0.00018489,2]
[350341243,1737804643430,-500.0,0.00018493,2]
[350341244,1737804643440,-738.64,0.00018493,2]
[350341245,1737804643449,-500.0,0.00018493,2]
[350341246,1737804643461,-776.46,0.00018493,2]
[350341247,1737804643470,-992.11,0.00018493,2]
[350341248,1737804643482,-500.0,0.00018493,2]
[350341249,1737804643491,-500.0,0.00018493,2]
[350341250,1737804643502,-1237.81,0.00018493,2]
[350341251,1737804643512,-580.12,0.00018493,2]
[350341252,1737804643521,-998.29,0.00018493,2]
[350341253,1737804643530,-261.8,0.00018493,2]
[350341254,1737804643539,-1303.77,0.00018493,2]
[350341255,1737804643548,-500.0,0.00018493,2]
[350341256,1737804643557,-500.0,0.00018493,2]
[350341257,1737804643565,-821.75,0.00018493,2]
[350341258,1737804643575,-500.0,0.00018493,2]
[350341259,1737804643584,-216.76,0.00018519,2]
[350341260,1737804643593,-1126.56,0.00018613,2]
[350341261,1737804643602,-500.0,0.0001863,2]
[350341262,1737804643611,-738.64,0.0001863,2]
[350341263,1737804643620,-500.0,0.0001863,2]
[350341264,1737804643629,-776.46,0.0001863,2]
[350341265,1737804643638,-992.11,0.0001863,2]
[350341267,1737804643649,-500.0,0.0001863,2]
[350341268,1737804643658,-500.0,0.0001863,2]
[350341269,1737804643667,-1237.81,0.0001863,2]
[350341270,1737804643676,-580.12,0.0001863,2]
[350341271,1737804643685,-998.29,0.0001863,2]
[350341272,1737804643694,-1303.77,0.0001863,2]
[350341273,1737804643703,-607.4,0.0001863,2]
[350341274,1737804643713,-500.0,0.0001863,2]
[350341275,1737804643722,-821.75,0.0001863,2]
[350341276,1737804643732,-500.0,0.0001863,2]
[350341277,1737804643741,-500.0,0.00018767,2]
[350341278,1737804643751,-738.64,0.00018767,2]
[350341279,1737804643760,-418.51765814,0.00018767,2]
[350341280,1737804643769,-776.46,0.00018767,2]
[350341281,1737804643778,-992.11,0.00018767,2]
[350341282,1737804643787,-500.0,0.00018767,2]
[350341283,1737804643796,-500.0,0.00018767,2]
[350341284,1737804643806,-1237.81,0.00018767,2]
[350341285,1737804643815,-580.12,0.00018767,2]
[350341286,1737804643824,-998.29,0.00018767,2]
[350341287,1737804643833,-1303.77,0.00018767,2]
[350341288,1737804643843,-500.0,0.00018767,2]
[350341289,1737804643852,-821.75,0.00018767,2]
[350341290,1737804643862,-500.0,0.00018767,2]
[350341291,1737804643871,-765.56199164,0.00018797,2]
[350341292,1737804643880,-14356.3857851,0.00018843,2]
[350341293,1737804643890,-2216.71,0.00018867,2]
[350341294,1737804643899,-1642.0,0.000189,2]
[350341295,1737804643909,-500.0,0.00018904,2]
[350341296,1737804643918,-738.64,0.00018904,2]
[350341297,1737804643927,-776.46,0.00018904,2]
[350341298,1737804643937,-992.11,0.00018904,2]
[350341299,1737804643947,-500.0,0.00018904,2]
[350341300,1737804643957,-500.0,0.00018904,2]
[350341301,1737804643968,-1237.81,0.00018904,2]
[350341302,1737804643981,-580.12,0.00018904,2]
[350341303,1737804643991,-998.29,0.00018904,2]
[350341304,1737804644000,-1303.77,0.00018904,2]
[350341305,1737804644009,-585.4,0.00018904,2]
[350341306,1737804644020,-821.75,0.00018904,2]
[350341307,1737804644029,-500.0,0.00018904,2]
[350341308,1737804644039,-248.47,0.00018956,2]
[350341309,1737804644050,-247.21,0.00018969,2]
[350341310,1737804644059,-650.0,0.00019,2]
[350341311,1737804644069,-500.0,0.00019041,2]
[350341312,1737804644078,-738.64,0.00019041,2]
[350341313,1737804644087,-776.46,0.00019041,2]
[350341314,1737804644097,-992.11,0.00019041,2]
[350341315,1737804644106,-500.0,0.00019041,2]
[350341316,1737804644115,-523.23,0.00019041,2]
[350341317,1737804644126,-1237.81,0.00019041,2]
[350341318,1737804644136,-580.12,0.00019041,2]
[350341319,1737804644145,-998.29,0.00019041,2]
[350341320,1737804644154,-1303.77,0.00019041,2]
[350341321,1737804644163,-821.75,0.00019041,2]
[350341322,1737804644172,-226.62,0.00019041,2]
[350341323,1737804644182,-23357.99907975,0.00019048,2]
[350341324,1737804644191,-500.0,0.00019106,2]
[350341325,1737804644200,-500.0,0.00019106,2]
[350341326,1737804644210,-500.0,0.00019106,2]
[350341327,1737804644219,-500.0,0.00019106,2]
[350341328,1737804644227,-500.0,0.00019106,2]
[350341329,1737804644237,-765.56199164,0.00019141,2]
[350341330,1737804644246,-285.9099,0.0001917,2]
[350341331,1737804644255,-500.0,0.00019178,2]
[350341332,1737804644264,-738.64,0.00019178,2]
[350341333,1737804644273,-776.46,0.00019178,2]
[350341334,1737804644283,-992.11,0.00019178,2]
[350341335,1737804644292,-500.0,0.00019178,2]
[350341336,1737804644301,-580.12,0.00019178,2]
[350341337,1737804644310,-998.29,0.00019178,2]
[350341338,1737804644319,-1303.77,0.00019178,2]
[350341339,1737804644328,-821.75,0.00019178,2]
[350341340,1737804644338,-216.76,0.00019204,2]
[350341341,1737804644348,-500.0,0.0001926,2]
[350341342,1737804644357,-150.0,0.0001927,2]
[350341343,1737804644366,-636.0,0.0001927,2]
[350341344,1737804644375,-567.0,0.0001927,2]
[350341345,1737804644384,-1865.0,0.0001927,2]
[350341346,1737804644393,-1262.0,0.0001927,2]
[350341347,1737804644402,-782.0,0.0001927,2]
[350341348,1737804644412,-907.0,0.0001927,2]
[350341349,1737804644420,-2949.0,0.0001927,2]
[350341350,1737804644430,-3987.0,0.0001927,2]
[350341351,1737804644439,-538.0,0.0001927,2]
[350341352,1737804644448,-150.0,0.0001927,2]
[350341353,1737804644458,-3903.0,0.0001927,2]
[350341354,1737804644469,-1270.0,0.0001927,2]
[350341355,1737804644478,-150.0,0.00019296,2]
[350341356,1737804644487,-500.0,0.00019315,2]
[350341357,1737804644496,-738.64,0.00019315,2]
[350341358,1737804644505,-776.46,0.00019315,2]
[350341359,1737804644515,-992.11,0.00019315,2]
[350341360,1737804644524,-397.13410745,0.00019315,2]
[350341361,1737804644533,-580.12,0.00019315,2]
[350341362,1737804644542,-998.29,0.00019315,2]
[350341363,1737804644551,-1303.77,0.00019315,2]
[350341364,1737804644561,-821.75,0.00019315,2]
[350341365,1737804644570,-600.0,0.000194,7]
[350341366,1737804644580,-150.0,0.0001942,2]
[350341367,1737804644591,-500.0,0.00019452,2]
[350341368,1737804644600,-738.64,0.00019452,2]
[350341369,1737804644609,-776.46,0.00019452,2]
[350341370,1737804644619,-992.11,0.00019452,2]
[350341371,1737804644628,-580.12,0.00019452,2]
[350341372,1737804644639,-998.29,0.00019452,2]
[350341373,1737804644649,-1303.77,0.00019452,2]
[350341374,1737804644658,-821.75,0.00019452,2]
[350341375,1737804644668,-150.0,0.00019483,2]
[350341376,1737804644677,-765.56199164,0.00019486,2]
[350341377,1737804644689,-1200.0,0.000195,7]
[350341378,1737804644698,-156.24859203,0.00019519,2]
[350341379,1737804644708,-275.92887426,0.00019546,2]
[350341380,1737804644718,-479.89613129,0.00019589,2]
[350341381,1737804644729,-738.84074722,0.00019589,2]
[350341382,1737804644740,-776.46895514,0.00019589,2]
[350341383,1737804644749,-992.30490231,0.00019589,2]
[350341384,1737804644759,-580.23336202,0.00019589,2]
[350341385,1737804644768,-998.47885638,0.00019589,2]
[350341386,1737804644780,-1303.79,0.00019589,2]
[350341387,1737804644789,-821.9438672,0.00019589,2]
[350341388,1737804644799,-434.809297,0.00019599,2]
[350341389,1737804644808,-1088.01886118,0.000196,2]
[350341390,1737804644817,-1800.0,0.000196,7]
[350341391,1737804644826,-150.0,0.00019647,2]
[350341392,1737804644835,-171.13521332,0.00019685,2]
[350341393,1737804644845,-2500.0,0.000197,7]
[350341394,1737804644854,-191.61658947,0.000197,2]
[350341395,1737804644863,-150.0,0.00019735,2]
[350341396,1737804644872,-172.08238926,0.00019736,2]
[350341397,1737804644881,-1227.32900888,0.00019753,2]
[350341398,1737804644890,-982.7,0.00019764,2]
[350341399,1737804644899,-437.34,0.00019764,2]
[350341400,1737804644908,-298.2,0.00019764,2]
[350341401,1737804644917,-298.2,0.00019764,2]
[350341402,1737804644926,-982.7,0.00019764,2]
[350341403,1737804644935,-982.7,0.00019764,2]
[350341404,1737804644943,-298.2,0.00019764,2]
[350341405,1737804644953,-977.1,0.00019764,2]
[350341406,1737804644962,-298.2,0.00019764,2]
[350341407,1737804644973,-298.2,0.00019764,2]
[350341408,1737804644983,-298.2,0.00019764,2]
[350341409,1737804644992,-298.2,0.00019764,2]
[350341410,1737804645001,-298.2,0.00019764,2]
[350341411,1737804645013,-296.49,0.00019764,2]
[350341412,1737804645022,-559.71108316,0.000198,2]
[350341413,1737804645032,-259504.11825004,0.000198,2]
[350341414,1737804645041,-571449.19704295,0.000198,4]
[350341415,1737804645051,-74968.61728853,0.000198,2]
[350341416,1737804645060,-3100.0,0.000198,7]
[350341417,1737804645070,-2205.97329,0.000198,2]
[350341418,1737804645079,-765.56199164,0.00019831,2]
[350341419,1737804645088,-1227.32900888,0.00019836,2]
[350341420,1737804645098,-500.0,0.0001984,2]
[350341421,1737804645107,-14211.6663769,0.00019844,3]
[350341422,1737804645116,-150.0,0.00019845,2]
[350341423,1737804645125,-175.06,0.00019863,2]
[350341424,1737804645134,-216.76,0.00019889,2]
[350341425,1737804645144,-228.06318773,0.00019896,2]
[350341426,1737804645154,-228.06318773,0.00019898,2]
[350341427,1737804645163,-1000.0,0.00019898,2]
[350341428,1737804645172,-5000.0,0.00019899,2]
[350341429,1737804645181,-22851.9793,0.00019899,2]
[350341430,1737804645190,-168.27944598,0.000199,2]
[350341431,1737804645200,-2000.0,0.000199,2]
[350341432,1737804645209,-1032.6206781,0.000199,2]
[350341433,1737804645219,-228.06318773,0.000199,2]
[350341434,1737804645228,-40012.92276854,0.000199,2]
[350341435,1737804645238,-5513.42827001,0.000199,7]
[350341436,1737804645248,-600.0,0.000199,7]
[350341437,1737804645257,-1206.20530543,0.000199,2]
[350341438,1737804645267,-180.27134514,0.000199,2]
[350341439,1737804645276,-23357.99907975,0.000199,2]
[350341440,1737804645285,-813.1000989,0.000199,2]
[350341441,1737804645294,-1227.32900888,0.00019918,2]
[350341442,1737804645303,-1000.0,0.00019934,2]
[350341443,1737804645312,-150.0,0.00019961,2]
[350341444,1737804645321,-6443.0,0.00019973,2]
[350341445,1737804645330,-803.0,0.00019973,2]
[350341446,1737804645339,-500.87571151,0.00019973,2]
[350341447,1737804645348,-500.77087357,0.00019973,2]
[350341448,1737804645357,-152.0,0.00019977,3]
[350341449,1737804645366,-150.0,0.00019988,2]
[350341450,1737804645375,-2017.86,0.0001999,2]
[350341451,1737804645384,-6043.3947753,0.0001999,2]
[350341452,1737804645394,-3997.1596569,0.0001999,2]
[350341453,1737804645403,-1767.4893378,0.0001999,2]
[350341454,1737804645411,-2454.2344449,0.0001999,2]
[350341455,1737804645422,-315902.03348379,0.00019996,2]
[350341456,1737804645430,-515.43274336,0.00019998,2]
[350341457,1737804645440,-506.7881571,0.00019998,2]
[350341458,1737804645449,-504.49255241,0.00019998,2]
[350341459,1737804645460,-500.0,0.00019998,2]
[350341460,1737804645469,-390.32248392,0.00019998,2]
[350341461,1737804645478,-500.0,0.00019998,2]
[350341462,1737804645487,-564.46,0.00019998,2]
[350341463,1737804645496,-500.0,0.00019998,2]
[350341464,1737804645505,-500.0,0.00019998,2]
[350341465,1737804645514,-500.0,0.00019998,2]
[350341466,1737804645523,-500.0,0.00019998,2]
[350341467,1737804645532,-500.0,0.00019998,2]
[350341468,1737804645541,-500.0,0.00019998,2]
[350341469,1737804645551,-500.0,0.00019998,2]
[350341470,1737804645560,-500.0,0.00019998,2]
[350341471,1737804645570,-500.0,0.00019998,2]
[350341472,1737804645579,-500.0,0.00019998,2]
[350341473,1737804645588,-500.0,0.00019998,2]
[350341474,1737804645597,-500.0,0.00019998,2]
[350341475,1737804645606,-500.0,0.00019998,2]
[350341476,1737804645616,-366.98588807,0.00019998,2]
[350341477,1737804645625,-508.65346327,0.00019998,2]
[350341478,1737804645634,-500.0,0.00019998,2]
[350341479,1737804645645,-500.0,0.00019998,2]
[350341480,1737804645658,-500.0,0.00019998,2]
[350341481,1737804645668,-500.0,0.00019998,2]
[350341482,1737804645677,-500.0,0.00019998,2]
[350341483,1737804645687,-500.0,0.00019998,2]
[350341484,1737804645696,-500.0,0.00019998,2]
[350341485,1737804645704,-500.0,0.00019998,2]
[350341486,1737804645714,-500.0,0.00019998,2]
[350341487,1737804645723,-500.0,0.00019998,2]
[350341488,1737804645731,-500.0,0.00019998,2]
[350341489,1737804645740,-500.0,0.00019998,2]
[350341490,1737804645749,-500.0,0.00019998,2]
[350341491,1737804645759,-500.0,0.00019998,2]
[350341492,1737804645768,-505.88531387,0.00019998,2]
[350341493,1737804645778,-500.0,0.00019998,2]
[350341494,1737804645788,-525.77201765,0.00019998,2]
[350341495,1737804645797,-500.0,0.00019998,2]
[350341496,1737804645807,-504.02780279,0.00019998,2]
[350341497,1737804645816,-500.0,0.00019998,2]
[350341498,1737804645826,-504.00793608,0.00019998,2]
[350341499,1737804645835,-625.06,0.00019998,2]
[350341500,1737804645844,-500.0,0.00019998,2]
[350341501,1737804645853,-502.3400183,0.00019998,2]
[350341502,1737804645862,-510.03314153,0.00019998,2]
[350341503,1737804645871,-500.0,0.00019998,2]
[350341504,1737804645881,-500.0,0.00019998,2]
[350341505,1737804645891,-503.59837276,0.00019998,2]
[350341506,1737804645901,-500.0,0.00019998,2]
[350341507,1737804645910,-500.0,0.00019998,2]
[350341508,1737804645920,-502.2120448,0.00019998,2]
[350341509,1737804645929,-500.0,0.00019998,2]
[350341510,1737804645938,-500.0,0.00019998,2]
[350341511,1737804645948,-503.51143323,0.00019998,2]
[350341512,1737804645957,-500.0,0.00019998,2]
[350341513,1737804645967,-310.51271796,0.00019998,2]
[350341514,1737804645980,-500.0,0.00019998,2]
[350341515,1737804645989,-504.8956295,0.00019998,2]